bitfinex-derivatives/quotes_SOLF0:USTF0_20260210
["timestamp","ask_amount","ask_price","bid_price","bid_amount"]
[1770745791076,3.90382315,84.859,84.81,3.55531298]
[1770745791282,3.90382315,84.859,84.811,3.99467399]
[1770745791884,3.55531298,84.85,84.811,3.99467399]
[1770745792586,3.90382315,84.849,84.797,98.03467399]
[1770745792781,3.90382315,84.849,84.798,3.99467399]
[1770745792980,3.55531298,84.84,84.798,3.99467399]
[1770745793783,3.55531298,84.84,84.799,3.99467399]
[1770745793977,3.55531298,84.84,84.8,3.55531298]
[1770745794292,3.55531298,84.84,84.801,3.99467399]
[1770745794482,3.90382315,84.849,84.801,3.99467399]
[1770745794685,3.55531298,84.85,84.803,3.99467399]
[1770745795282,3.55531298,84.85,84.806,10.6171]
[1770745795487,14.16581298,84.86,84.811,3.99467399]
[1770745796190,10.6105,84.86,84.821,3.99467399]
[1770745796385,3.90382315,84.862,84.822,10.6151]
[1770745796693,10.6095,84.868,84.823,3.99467399]
[1770745796881,3.90382315,84.859,84.811,3.99467399]
[1770745797187,14.51462315,84.857,84.813,3.99467399]
[1770745798198,10.6099,84.864,84.816,3.99467399]
[1770745798389,3.55531298,84.87,84.816,3.99467399]
[1770745798586,7.45913613,84.87,84.816,3.99467399]
[1770745799691,7.45913613,84.87,84.82,3.99467399]
[1770745799886,7.45913613,84.87,84.821,3.99467399]
[1770745800383,3.55531298,84.88,84.831,3.99467399]
[1770745801285,3.90382315,84.879,84.835,10.6135]
[1770745801485,3.90382315,84.879,84.795,10.80124224]
[1770745801486,3.90382315,84.859,84.816,3.99467399]
[1770745802087,3.90382315,84.859,84.817,10.6158]
[1770745803190,3.90382315,84.859,84.816,3.99467399]
[1770745803191,3.90382315,84.859,84.823,10.615]
[1770745803392,3.90382315,84.873,84.824,3.99467399]
[1770745803782,3.90382315,84.873,84.834,10.6137]
[1770745805697,3.90382315,84.873,84.828,3.99467399]
[1770745806196,7.45913613,84.87,84.828,3.99467399]
[1770745806488,3.90382315,84.869,84.828,3.99467399]
[1770745807194,3.55531298,84.87,84.83,3.99467399]
[1770745807590,3.55531298,84.87,84.831,10.614]
[1770745809500,10.6089,84.872,84.831,10.614]
[1770745810194,3.90382315,84.871,84.831,10.614]
[1770745810394,3.90382315,84.869,84.831,3.99467399]
[1770745810795,14.51322315,84.869,84.831,3.99467399]
[1770745811093,3.90382315,84.868,84.823,10.615]
[1770745811301,3.90382315,84.859,84.818,3.99467399]
[1770745813101,10.6101,84.863,84.826,3.99467399]
[1770745813491,3.55531298,84.86,84.826,3.99467399]
[1770745813695,7.45913613,84.86,84.813,3.99467399]
[1770745814091,10.6106,84.859,84.82,10.6153]
[1770745815209,10.6106,84.859,84.821,3.99467399]
[1770745816199,3.90382315,84.858,84.813,10.6162]
[1770745816400,3.55531298,84.85,84.813,10.6162]
[1770745816607,3.90382315,84.853,84.814,3.99467399]
[1770745816794,7.45913613,84.86,84.814,3.99467399]
[1770745817398,10.6107,84.859,84.818,10.6157]
[1770745818215,3.90382315,84.86,84.821,3.99467399]
[1770745818502,10.6098,84.866,84.821,3.99467399]
[1770745818903,3.90382315,84.873,84.829,10.6143]
[1770745819103,3.90382315,84.873,84.829,14.60897399]
[1770745819303,3.90382315,84.873,84.82,3.55531298]
[1770745819304,3.90382315,84.873,84.83,7.54998697]
[1770745819507,3.90382315,84.873,84.831,3.99467399]
[1770745820504,3.90382315,84.873,84.832,3.82473572]
[1770745820710,94.06,84.89,84.832,3.82473572]
[1770745820711,10.6079,84.881,84.832,3.82473572]
[1770745821908,3.81036236,84.886,84.843,10.6124]
[1770745823708,14.65918598,84.885,84.843,10.6124]
[1770745824213,4.05188598,84.882,84.836,10.6133]
[1770745824415,4.05188598,84.882,84.832,3.82473572]
[1770745824614,3.55531298,84.88,84.832,3.82473572]
[1770745825415,4.05188598,84.869,84.819,14.56789345]
[1770745826019,4.05188598,84.869,84.821,3.76665121]
[1770745826219,3.55531298,84.88,84.828,3.76665121]
[1770745826410,4.05188598,84.88,84.831,3.76665121]
[1770745827821,4.05188598,84.88,84.837,3.76665121]
[1770745828719,10.6064,84.893,84.851,3.76665121]
[1770745829616,14.65828598,84.893,84.851,3.76665121]
[1770745829816,10.6053,84.902,84.851,3.76665121]
[1770745830017,14.65718598,84.902,84.851,3.76665121]
[1770745830218,4.05188598,84.901,84.851,3.76665121]
[1770745830619,10.6053,84.902,84.861,3.76665121]
[1770745831716,4.05188598,84.913,84.86,3.55531298]
[1770745831717,10.604,84.912,84.866,3.76665121]
[1770745832117,10.6045,84.908,84.866,3.76665121]
[1770745832314,3.55531298,84.9,84.851,3.76665121]
[1770745832518,4.05188598,84.899,84.851,3.76665121]
[1770745833123,3.55531298,84.91,84.851,3.76665121]
[1770745833323,10.605,84.904,84.857,10.6107]
[1770745833524,7.60719896,84.89,84.842,3.76665121]
[1770745833723,4.05188598,84.889,84.842,3.76665121]
[1770745833929,4.05188598,84.905,84.861,3.76665121]
[1770745835726,10.6051,84.903,84.861,14.37695121]
[1770745836932,10.6051,84.903,84.862,3.76665121]
[1770745838638,4.05188598,84.896,84.855,10.6111]
[1770745839537,10.605,84.904,84.861,3.76665121]
[1770745840229,10.605,84.904,84.863,3.76665121]
[1770745841236,4.05188598,84.914,84.871,3.76665121]
[1770745841835,3.55386451,84.92,84.871,3.76665121]
[1770745842228,7.60575049,84.92,84.871,3.76665121]
[1770745842423,4.05188598,84.919,84.871,3.76665121]
[1770745842937,4.05188598,84.919,84.873,10.6088]
[1770745844331,4.05188598,84.919,84.873,14.37545121]
[1770745845134,14.65518598,84.918,84.873,14.37545121]
[1770745845434,4.05188598,84.917,84.873,3.76665121]
[1770745846833,4.05188598,84.909,84.864,10.6099]
[1770745847944,4.05188598,84.908,84.864,10.6099]
[1770745849138,4.05188598,84.908,84.868,3.76665121]
[1770745850040,4.05188598,84.908,84.869,10.6092]
[1770745850441,3.55386451,84.91,84.873,4.09626583]
[1770745850640,10.6033,84.917,84.873,4.09626583]
[1770745851639,10.6033,84.917,84.838,14.47051782]
[1770745851640,3.55386451,84.94,84.891,4.09626583]
[1770745851943,3.8222185,84.946,84.891,4.09626583]
[1770745852244,3.8222185,84.946,84.894,4.09626583]
[1770745852444,94.02,84.947,84.901,4.09626583]
[1770745852747,3.8222185,84.946,84.901,4.09626583]
[1770745852935,10.5993,84.95,84.904,4.09626583]
[1770745853141,3.55386451,84.98,84.921,4.09626583]
[1770745853444,3.8222185,84.988,84.941,4.09626583]
[1770745853642,3.8222185,84.986,84.941,4.09626583]
[1770745853850,3.55386451,84.98,84.941,4.09626583]
[1770745854347,3.8222185,84.979,84.927,4.09626583]
[1770745854651,3.55386451,84.97,84.927,4.09626583]
[1770745856151,3.8222185,84.969,84.927,4.09626583]
[1770745856352,3.8222185,84.969,84.92,10.6029]
[1770745856552,3.55386451,84.96,84.92,10.6029]
[1770745857258,3.8222185,84.969,84.92,10.6029]
[1770745857653,3.55386451,84.96,84.92,10.6029]
[1770745857855,3.8222185,84.959,84.913,4.09626583]
[1770745858951,3.55386451,84.96,84.923,14.69876583]
[1770745859156,3.55386451,84.97,84.923,14.69876583]
[1770745859354,3.8222185,84.969,84.923,14.69876583]
[1770745860562,3.55386451,84.96,84.923,4.09626583]
[1770745861660,3.8222185,84.959,84.91,3.55386451]
[1770745861860,3.8222185,84.939,84.891,4.09626583]
[1770745862768,3.8222185,84.939,84.837,14.33843346]
[1770745862769,3.8222185,84.919,84.878,4.09626583]
[1770745862966,21.1905,84.982,84.878,4.09626583]
[1770745862967,3.55386451,84.93,84.88,3.55386451]
[1770745863167,3.55386451,84.94,84.891,4.09626583]
[1770745863859,93.96,84.953,84.842,93.96]
[1770745863860,3.55386451,84.95,84.903,4.09626583]
[1770745864263,93.96,84.953,84.903,4.09626583]
[1770745864459,7.37608301,84.96,84.903,4.09626583]
[1770745864768,7.37608301,84.96,84.915,10.6035]
[1770745864969,3.8222185,84.959,84.915,10.6035]
[1770745865170,3.55386451,84.95,84.915,10.6035]
[1770745865368,3.8222185,84.959,84.915,10.6035]
[1770745865671,3.8222185,84.959,84.922,10.6026]
[1770745867463,3.55386451,84.96,84.922,14.69886583]
[1770745867660,93.96,84.977,84.931,4.09626583]
[1770745867862,3.55386451,84.98,84.931,4.09626583]
[1770745868864,3.54770285,84.98,84.943,10.6]
[1770745869264,3.54770285,84.97,84.931,4.09626583]
[1770745869465,3.8222185,84.969,84.921,4.09626583]
[1770745869874,3.8222185,84.969,84.926,10.6021]
[1770745870168,3.54770285,84.96,84.926,10.6021]
[1770745870970,3.8222185,84.969,84.926,10.6021]
[1770745872275,14.4191185,84.969,84.926,10.6021]
[1770745872470,3.8222185,84.968,84.921,4.09626583]
[1770745872774,3.8222185,84.968,84.89,4.09626583]
[1770745873369,3.8222185,84.968,84.891,4.09626583]
[1770745873563,3.8222185,84.968,84.915,4.09626583]
[1770745874773,10.5973,84.966,84.917,4.09626583]
[1770745875377,10.598,84.96,84.917,4.09626583]
[1770745875570,3.8222185,84.959,84.917,4.09626583]
[1770745876273,3.8222185,84.959,84.9,14.70156583]
[1770745877270,10.601,84.936,84.892,10.6063]
[1770745878268,93.96,84.957,84.888,4.09626583]
[1770745878269,14.4241185,84.928,84.888,4.09626583]
[1770745878475,93.96,84.957,84.874,4.09626583]
[1770745878476,3.8222185,84.927,84.874,4.09626583]
[1770745879073,3.8222185,84.94,84.883,4.09626583]
[1770745879672,10.5995,84.948,84.895,4.09626583]
[1770745879975,93.96,84.962,84.895,4.09626583]
[1770745879976,3.8222185,84.954,84.895,4.09626583]
[1770745880181,93.96,84.962,84.914,14.6495957]
[1770745881280,93.96,84.962,84.919,10.603]
[1770745881975,93.96,84.962,84.923,10.6026]
[1770745882176,93.96,84.962,84.924,4.05764556]
[1770745882478,3.96099418,84.969,84.924,4.05764556]
[1770745883679,3.78193226,84.999,84.924,4.05764556]
[1770745884583,14.37523226,84.998,84.95,10.5991]
[1770745884781,3.78193226,84.997,84.95,10.5991]
[1770745885583,10.5936,84.995,84.946,4.05764556]
[1770745885781,3.78193226,84.994,84.911,10.74336057]
[1770745885976,3.78193226,84.994,84.912,4.05764556]
[1770745886676,9.50585767,85.01,84.9,9.50585767]
[1770745886677,10.5966,84.971,84.919,4.05764556]
[1770745887080,3.78193226,84.979,84.919,4.05764556]
[1770745887280,10.5956,84.98,84.936,4.05764556]
[1770745887483,3.78193226,84.993,84.936,4.05764556]
[1770745888078,14.37723226,84.982,84.936,4.05764556]
[1770745888482,10.5953,84.982,84.936,4.05764556]
[1770745889777,10.5953,84.982,84.937,4.05764556]
[1770745890778,10.5953,84.982,84.939,10.6005]
[1770745890977,10.5953,84.982,84.94,4.05764556]
[1770745892578,10.5942,84.99,84.94,4.05764556]
[1770745892784,14.37613226,84.99,84.94,4.05764556]
[1770745892983,3.54728766,84.98,84.94,4.05764556]
[1770745894283,93.94,85.009,84.923,10.6025]
[1770745894284,3.78193226,84.969,84.923,10.6025]
[1770745894476,3.54728766,84.96,84.922,4.05764556]
[1770745895086,10.95600977,85.001,84.9,3.54728766]
[1770745895087,3.54728766,84.95,84.919,10.603]
[1770745895287,3.54728766,84.95,84.908,4.05764556]
[1770745895876,3.54728766,84.94,84.902,10.6052]
[1770745896183,3.54728766,84.94,84.89,4.05764556]
[1770745896184,3.78193226,84.939,84.89,4.05764556]
[1770745896579,14.38263226,84.938,84.894,10.6061]
[1770745896777,3.54728766,84.93,84.894,10.6061]
[1770745896981,3.55152947,84.93,84.894,10.6061]
[1770745897180,3.55152947,84.93,84.89,4.05764556]
[1770745897181,3.78193226,84.938,84.9,10.6053]
[1770745897577,3.78193226,84.938,84.89,4.05764556]
[1770745897789,14.38273226,84.938,84.891,10.6065]
[1770745897989,14.38273226,84.938,84.892,4.05764556]
[1770745899088,10.6011,84.935,84.893,10.6063]
[1770745899589,10.6011,84.935,84.894,4.05764556]
[1770745899789,14.38173226,84.945,84.896,4.05764556]
[1770745900786,14.38173226,84.945,84.899,10.6055]
[1770745903293,3.78193226,84.944,84.899,10.6055]
[1770745904081,9.5124092,84.92,84.862,10.75037661]
[1770745904385,9.5124092,84.92,84.855,6.80522224]
[1770745904690,10.604,84.912,84.855,6.80522224]
[1770745904896,9.5124092,84.9,84.839,6.80522224]
[1770745906090,93.96,84.899,84.839,6.80522224]
[1770745906687,10.6066,84.891,84.839,6.80522224]
[1770745907394,9.5124092,84.9,84.842,6.92613521]
[1770745908184,10.6066,84.891,84.842,6.92613521]
[1770745909284,9.5124092,84.9,84.846,6.90893264]
[1770745910689,10.6058,84.898,84.848,6.9090135]
[1770745911896,93.98,84.909,84.853,6.89471575]
[1770745912791,94.0,84.911,84.853,6.89471575]
[1770745912991,10.6055,84.9,84.853,6.89471575]
[1770745914700,10.6064,84.892,84.853,6.89471575]
[1770745914896,10.6064,84.892,84.844,10.6124]
[1770745915694,10.6064,84.892,84.799,94.0]
[1770745915695,9.5124092,84.9,84.824,6.89593722]
[1770745916303,94.0,84.899,84.824,6.89593722]
[1770745916802,10.6084,84.877,84.829,10.6143]
[1770745917501,9.5124092,84.88,84.824,6.89593722]
[1770745918003,9.5124092,84.88,84.821,10.6152]
[1770745918004,10.6094,84.869,84.821,10.6152]
[1770745918697,10.6084,84.877,84.827,6.90857162]
[1770745919802,10.6091,84.871,84.829,6.91879567]
[1770745921509,94.0,84.889,84.82,10.6153]
[1770745921510,10.61,84.864,84.82,10.6153]
[1770745921710,10.61,84.864,84.821,6.89178525]
[1770745922204,10.61,84.864,84.822,10.6151]
[1770745922403,10.6091,84.871,84.823,6.89178525]
[1770745922998,3.5575979,84.86,84.823,6.89178525]
[1770745923707,3.5575979,84.86,84.826,10.6147]
[1770745923900,14.1680979,84.86,84.823,6.89178525]
[1770745924407,3.5575979,84.85,84.823,6.89178525]
[1770745926709,3.5575979,84.85,84.814,10.6161]
[1770745928108,3.5575979,84.87,84.821,6.85407017]
[1770745928909,10.6093,84.869,84.828,6.85407017]
[1770745929408,10.6101,84.863,84.828,6.85407017]
[1770745929599,3.5575979,84.85,84.817,10.6157]
[1770745933215,3.5575979,84.85,84.815,6.85263438]
[1770745933216,3.5575979,84.84,84.808,10.6168]
[1770745933919,3.5575979,84.84,84.808,17.49655056]
[1770745934217,3.5575979,84.84,84.809,6.87975056]
[1770745934717,3.5575979,84.85,84.81,17.49635056]
[1770745937519,3.5575979,84.85,84.814,10.6161]
[1770745938416,3.5575979,84.85,84.815,6.88467992]
[1770745938624,3.5575979,84.85,84.817,6.88467992]
[1770745939919,94.06,84.88,84.817,6.88467992]
[1770745940216,3.5575979,84.86,84.817,6.88467992]
[1770745940710,3.5575979,84.86,84.817,17.50037992]
[1770745940911,3.55798095,84.86,84.818,6.92313103]
[1770745941510,10.6107,84.859,84.818,6.92313103]
[1770745941915,3.55798095,84.85,84.807,17.52485259]
[1770745942416,3.55798095,84.85,84.808,6.90775758]
[1770745942912,14.16978095,84.85,84.808,6.90775758]
[1770745944113,14.16978095,84.85,84.811,6.89871728]
[1770745944313,3.55798095,84.87,84.821,6.89871728]
[1770745945016,10.6107,84.859,84.822,6.8773918]
[1770745946114,21.2127,84.893,84.8,3.55798095]
[1770745946115,10.6119,84.849,84.808,6.8773918]
[1770745949020,10.611,84.856,84.812,6.87915909]
[1770745950814,10.611,84.856,84.816,6.87180456]
[1770745951718,3.55798095,84.85,84.818,10.6156]
[1770745952521,10.6118,84.849,84.807,10.617]
[1770745952821,10.6118,84.849,84.807,17.48200776]
[1770745953120,10.6118,84.849,84.808,6.86500776]
[1770745954022,10.6118,84.849,84.81,10.6166]
[1770745954818,10.6118,84.849,84.813,6.8654327]
[1770745955125,10.611,84.856,84.813,6.8654327]
[1770745955713,10.611,84.856,84.815,6.86794572]
[1770745957621,10.6117,84.851,84.815,6.86794572]
[1770745964121,10.6119,84.849,84.807,10.617]
[1770745964325,3.55825137,84.84,84.807,10.617]
[1770745965814,10.6119,84.849,84.807,10.617]
[1770745966423,10.6132,84.838,84.8,10.6178]
[1770745968431,10.6132,84.838,84.801,6.76780611]
[1770745971233,10.614,84.832,84.801,6.76780611]
[1770745972828,10.6131,84.839,84.801,6.76780611]
[1770745973232,3.55825137,84.84,84.801,6.76780611]
[1770745973428,10.6138,84.834,84.801,6.76780611]
[1770745973628,3.55825137,84.84,84.793,6.80830182]
[1770745974133,10.6137,84.835,84.794,17.42700182]
[1770745975330,3.55825137,84.84,84.798,6.79909663]
[1770745976734,3.55825137,84.84,84.8,10.6179]
[1770745977434,3.55825137,84.84,84.801,6.78622511]
[1770745977635,3.55825137,84.84,84.802,10.6176]
[1770745978028,3.55825137,84.84,84.803,6.78622511]
[1770745978742,94.08,84.858,84.768,21.50765019]
[1770745978743,3.55825137,84.83,84.796,10.6184]
[1770745979733,3.55825137,84.83,84.789,6.78622511]
[1770745980437,3.55825137,84.83,84.78,14.28681853]
[1770745980438,10.6131,84.839,84.791,6.78300245]
[1770745980740,3.55825137,84.84,84.791,6.78300245]
[1770745980940,3.55825137,84.84,84.794,6.78300245]
[1770745981840,10.6138,84.834,84.794,6.78300245]
[1770745983843,10.6138,84.834,84.796,6.81153637]
[1770745996350,3.55957037,84.84,84.796,6.81153637]
[1770745996559,10.6129,84.841,84.801,6.78735556]
[1770745997758,10.6129,84.841,84.803,6.78479083]
[1770745999863,10.612,84.848,84.805,6.78479334]
[1770746001853,94.08,84.849,84.811,6.78036881]
[1770746003452,104.6919,84.849,84.811,6.78036881]
[1770746003655,94.08,84.849,84.811,6.78036881]
[1770746004359,3.55957037,84.84,84.811,6.78036881]
[1770746004558,3.55957037,84.84,84.803,10.6175]
[1770746006463,10.6131,84.839,84.797,10.6183]
[1770746007358,10.6131,84.839,84.798,6.67362654]
[1770746008268,10.6131,84.839,84.79,3.55957037]
[1770746008269,10.6131,84.839,84.802,6.67362654]
[1770746010556,10.6131,84.839,84.778,14.32660516]
[1770746010557,94.08,84.849,84.81,6.66098474]
[1770746011270,94.08,84.849,84.814,6.66346977]
[1770746014068,3.55957037,84.85,84.814,6.66346977]
[1770746014769,3.55957037,84.85,84.816,10.6158]
[1770746017572,3.55957037,84.85,84.814,6.66346977]
[1770746018869,3.55885571,84.85,84.814,6.66346977]
[1770746024273,10.612,84.848,84.814,6.66346977]
[1770746027374,36.21653119,84.869,84.82,3.55885571]
[1770746027580,36.21653119,84.869,84.821,10.89898454]
[1770746027878,36.21653119,84.869,84.822,10.89898454]
[1770746028174,36.21653119,84.869,84.82,14.45784025]
[1770746028775,39.7753869,84.86,84.819,10.89898454]
[1770746029070,36.21653119,84.849,84.806,10.89898454]
[1770746029471,36.21653119,84.849,84.802,10.89898454]
[1770746029674,36.28183734,84.839,84.802,10.89898454]
[1770746029977,36.28183734,84.839,84.795,10.89898454]
[1770746030180,36.28177353,84.819,84.788,10.89898454]
[1770746030370,36.28177353,84.819,84.78,10.6204]
[1770746030574,36.28177353,84.819,84.78,10.89898454]
[1770746030774,36.28177353,84.819,84.782,10.89898454]
[1770746030974,36.28177353,84.819,84.78,10.89898454]
[1770746031175,36.28177353,84.819,84.787,10.6195]
[1770746031384,36.28177353,84.819,84.779,10.89898454]
[1770746031573,36.28177353,84.819,84.777,10.89898454]
[1770746033282,36.28177353,84.819,84.776,10.89898454]
[1770746035080,36.28177353,84.819,84.775,10.621]
[1770746035475,36.28177353,84.819,84.775,21.51998454]
[1770746036183,36.28177353,84.819,84.775,10.621]
[1770746036981,36.15807261,84.81,84.775,10.621]
[1770746037180,39.71692832,84.81,84.775,10.621]
[1770746037782,39.71586321,84.8,84.765,10.89898454]
[1770746038087,39.71586321,84.8,84.757,10.89898454]
[1770746038681,39.71586321,84.8,84.761,10.6227]
[1770746040283,39.71586321,84.8,84.755,10.89898454]
[1770746040284,36.12721037,84.779,84.745,10.89898454]
[1770746040481,36.12721037,84.779,84.693,21.2627]
[1770746040482,36.12721037,84.779,84.731,10.89877099]
[1770746040981,36.12721037,84.769,84.723,10.6275]
[1770746041285,39.68935101,84.75,84.707,10.89877099]
[1770746041582,39.68935101,84.75,84.701,10.89877099]
[1770746041778,36.1304953,84.739,84.692,12.95255293]
[1770746041984,36.1304953,84.739,84.69,3.55885571]
[1770746042582,39.68935101,84.73,84.694,10.6312]
[1770746042881,9.53e-05,84.71,84.67,3.55885571]
[1770746043080,3.55885571,84.73,84.67,3.55885571]
[1770746043686,94.1,84.749,84.696,10.6309]
[1770746043687,3.55885571,84.74,84.696,10.6309]
[1770746044279,3.55885571,84.73,84.696,10.6309]
[1770746044478,3.55885571,84.73,84.686,10.6321]
[1770746044679,3.55885571,84.72,84.677,94.1]
[1770746045282,21.69315243,84.73,84.681,10.6328]
[1770746045783,21.69315243,84.73,84.69,10.6317]
[1770746046388,3.55885571,84.74,84.69,14.19055571]
[1770746046689,21.69315243,84.74,84.69,14.19055571]
[1770746047091,21.69315243,84.73,84.69,10.6317]
[1770746047290,21.72234445,84.72,84.68,10.6329]
[1770746047691,21.72234445,84.72,84.642,21.2755]
[1770746047692,18.16348874,84.72,84.66,3.55885571]
[1770746047888,21.72234445,84.72,84.66,3.55885571]
[1770746048193,21.72234445,84.72,84.671,10.6341]
[1770746049186,21.72234445,84.72,84.66,3.55885571]
[1770746049187,21.46466007,84.71,84.661,10.6353]
[1770746049787,17.90580436,84.699,84.661,10.6353]
[1770746050485,17.90580436,84.716,84.673,10.6338]
[1770746052486,165.2075,84.781,84.632,2.05509788]
[1770746052487,17.93211996,84.729,84.681,10.6328]
[1770746054386,17.92068905,84.719,84.67,14.19305571]
[1770746054595,17.92068905,84.719,84.632,2.05509788]
[1770746054596,17.92068905,84.719,84.66,3.55885571]
[1770746055397,17.92068905,84.719,84.68,3.55885571]
[1770746055896,17.92068905,84.719,84.681,10.6328]
[1770746057289,21.46105161,84.74,84.681,10.6328]
[1770746057490,3.55885571,84.73,84.68,3.55885571]
[1770746057693,21.46105161,84.72,84.672,10.6339]
[1770746058094,17.9021959,84.72,84.67,3.55885571]
[1770746058597,17.9021959,84.72,84.68,3.55885571]
[1770746059796,17.9021959,84.72,84.677,10.6333]
[1770746059992,17.9021959,84.72,84.68,3.55885571]
[1770746060596,17.9021959,84.72,84.682,10.6326]
[1770746061102,17.89803311,84.752,84.722,10.6277]
[1770746061291,17.88559821,84.761,84.722,10.6277]
[1770746063897,17.88559821,84.761,84.736,10.6259]
[1770746064104,17.87143986,84.786,84.74,3.55885571]
[1770746064497,17.87143986,84.786,84.73,3.55885571]
[1770746065703,17.87143986,84.786,84.735,10.626]
[1770746066596,17.87264489,84.784,84.735,10.626]
[1770746067306,17.85690508,84.779,84.735,10.626]
[1770746067503,94.18,84.806,84.696,94.18]
[1770746067504,17.85690508,84.769,84.727,10.627]
[1770746067804,17.85690508,84.759,84.71,3.55885571]
[1770746068502,21.41576079,84.75,84.7,3.55885571]
[1770746068700,21.41576079,84.75,84.69,3.55885571]
[1770746069505,21.41576079,84.75,84.668,94.18]
[1770746069506,17.84264432,84.748,84.701,10.6303]
[1770746069704,17.84264432,84.748,84.7,3.55885571]
[1770746069908,17.84264432,84.739,84.69,3.55885571]
[1770746070802,17.84264432,84.739,84.668,94.18]
[1770746070803,17.84264432,84.736,84.684,10.6324]
[1770746070998,17.84264432,84.729,84.68,3.55885571]
[1770746071201,17.84264432,84.729,84.67,3.55885571]
[1770746071808,17.82106353,84.717,84.675,10.6335]
[1770746072400,17.82106353,84.712,84.667,10.6346]
[1770746073905,21.4087582,84.71,84.66,14.19435571]
[1770746074110,3.55885571,84.7,84.65,3.55885571]
[1770746074315,17.84990249,84.699,84.65,3.55885571]
[1770746075706,28.48060249,84.699,84.651,10.6366]
[1770746075911,17.84848876,84.698,84.66,3.55885571]
[1770746076910,17.84848876,84.712,84.662,10.6352]
[1770746077115,17.84277758,84.709,84.662,10.6352]
[1770746077610,21.2503,84.743,84.635,94.2]
[1770746077611,3.55885571,84.7,84.635,94.2]
[1770746077810,21.2503,84.743,84.65,3.55885571]
[1770746077811,17.84277758,84.704,84.65,3.55885571]
[1770746078010,17.84277758,84.704,84.66,3.55885571]
[1770746078308,17.84277758,84.704,84.662,10.6352]
[1770746079713,17.84277758,84.704,84.654,10.6362]
[1770746080411,94.2,84.736,84.654,10.6362]
[1770746080412,17.81693305,84.699,84.654,10.6362]
[1770746080801,17.81693305,84.699,84.638,94.2]
[1770746080802,21.38725645,84.71,84.661,10.6353]
[1770746081613,21.38725645,84.71,84.667,10.6345]
[1770746085013,17.81693305,84.71,84.672,10.6339]
[1770746085207,17.75914533,84.729,84.68,3.5703234]
[1770746085518,17.75914533,84.729,84.689,10.6318]
[1770746085711,17.75914533,84.729,84.69,3.5703234]
[1770746087711,94.22,84.755,84.68,3.5703234]
[1770746087712,17.76501956,84.719,84.68,3.5703234]
[1770746088318,17.76501956,84.733,84.694,10.6311]
[1770746088822,17.76501956,84.729,84.68,3.5703234]
[1770746089016,17.76501956,84.729,84.682,10.6327]
[1770746091416,10.627,84.728,84.682,10.6327]
[1770746091619,17.7296615,84.727,84.682,10.6327]
[1770746092818,17.7296615,84.725,84.682,10.6327]
[1770746093823,17.7296615,84.725,84.689,10.6318]
[1770746094124,17.7296615,84.725,84.67,3.5703234]
[1770746094423,17.72886616,84.751,84.69,3.5703234]
[1770746094624,17.72886616,84.749,84.7,3.5703234]
[1770746094823,17.72886616,84.739,84.68,3.5703234]
[1770746095024,17.72886616,84.739,84.69,3.5703234]
[1770746095414,17.72886616,84.739,84.699,10.6305]
[1770746098921,17.72886616,84.739,84.706,10.6296]
[1770746100023,11.78,84.81,84.719,10.628]
[1770746100024,17.67127536,84.751,84.719,10.628]
[1770746100422,17.67127536,84.769,84.72,3.5703234]
[1770746100624,17.67127536,84.769,84.73,3.5703234]
[1770746101322,17.67127536,84.769,84.731,10.6265]
[1770746101723,21.2347,84.805,84.7,3.5703234]
[1770746101724,12.36157772,84.759,84.7,3.5703234]
[1770746102028,12.36157772,84.759,84.71,3.5703234]
[1770746102429,12.36157772,84.759,84.718,10.6282]
[1770746103828,12.37834044,84.758,84.718,10.6282]
[1770746107829,7.07346818,84.757,84.7,3.56594929]
[1770746108333,7.07346818,84.757,84.71,3.56594929]
[1770746108529,7.07346818,84.769,84.72,3.56594929]
[1770746108737,7.07346818,84.769,84.673,165.416]
[1770746108738,7.07346818,84.769,84.73,3.56594929]
[1770746109233,7.07346818,84.769,84.72,3.56594929]
[1770746110425,7.07300569,84.783,84.74,3.56594929]
[1770746110623,7.07300569,84.806,84.76,3.56594929]
[1770746110833,21.87945863,84.87,84.74,3.56594929]
[1770746110834,7.07300569,84.799,84.74,3.56594929]
[1770746111030,94.18,84.841,84.756,10.6234]
[1770746111031,3.56594929,84.79,84.756,10.6234]
[1770746111231,7.09257443,84.789,84.756,10.6234]
[1770746111436,7.09257443,84.789,84.74,3.56594929]
[1770746111637,7.09257443,84.789,84.748,10.6244]
[1770746111838,7.09257443,84.779,84.73,3.56594929]
[1770746112136,7.09257443,84.759,84.72,3.56594929]
[1770746112930,7.09257443,84.759,84.71,3.56594929]
[1770746113840,7.09257443,84.759,84.688,21.264]
[1770746113841,7.09257443,84.759,84.698,10.89877099]